Cogmind - Beta 10.2 @@@ ROGUE MODE // 2022.03.12 @ 14:20:38 Player: Yanche Result: Destroyed by L-31 Rogue with Katana Performance ------------- Evolutions (2) 1000 Regions Visited (5) 1000 Robots Destroyed (26) 130 Value Destroyed (768) 768 Prototype IDs (4) 80 Alien Tech Used (0) 0 Bonus (22) 22 TOTAL SCORE: 3000 Bonus ------- High Alert Combat Kills 22 Cogmind --------- Core Integrity 0/550 Matter 300/300 Energy 100/100 System Corruption 15% Temperature Cool (0) Movement Core (550) Ox10 Location -8/Materials Parts ------- > --- POWER (2) -------- (None) > --- PROPULSION (2) --- (None) > --- UTILITY (4) ------ High-capacity Storage Unit > --- WEAPON (3) ------- (None) > --- INVENTORY (12) --- Deuterium Engine Light Nuclear Core Wheel Wheel Compact Wheel High-capacity Storage Unit Seismic Analyzer Light Armor Plating Peak State ------------ > --- POWER ------------ Light Nuclear Core Light Nuclear Core > --- PROPULSION ------- Compact Wheel Compact Wheel > --- UTILITY ---------- Improved Heat Sink High-capacity Storage Unit Compact Matter Pod Experimental Sensor Array > --- WEAPON ----------- Particle Gun Pulse Rifle Enhanced Autogun > --- INVENTORY -------- Deuterium Engine Wheel Wheel Compact Wheel Thermal Generator High-capacity Storage Unit Seismic Analyzer Shock Rifle Particle Gun Ion Cannon [Rating: 31] Favorites ----------- Power Ion Engine Engine Ion Engine Power Core Light Nuclear Core Propulsion Wheel Wheel Wheel Utility Compact Matter Pod Device Experimental Sensor Array Storage Compact Matter Pod Weapon Light Assault Rifle Energy Gun EM Pulse Gun Energy Cannon Ion Cannon Ballistic Gun Light Assault Rifle Build | -11 -10 -10 -10 -9 -8 ------- Run | Scr Mat Min Exi Min Mat Slots Evolved 4 | . . . . . 4 Power 1 | . . . . . 1 Propulsion . | . . . . . . Utility 2 | . . . . . 2 Weapon 1 | . . . . . 1 Parts Attached 32 | 7 1 4 1 . 19 Power 5 | 2 . . . . 3 Engine 3 | 2 . . . . 1 Core 2 | . . . . . 2 Reactor . | . . . . . . Propulsion 6 | 2 . 2 . . 2 Treads . | . . . . . . Leg . | . . . . . . Wheel 6 | 2 . 2 . . 2 Hover . | . . . . . . Flight . | . . . . . . Utility 8 | 1 1 1 1 . 4 Device 3 | . . . . . 3 Storage 5 | 1 1 1 1 . 1 Processor . | . . . . . . Hackware . | . . . . . . Protection . | . . . . . . Artifact . | . . . . . . Weapon 13 | 2 . 1 . . 10 Energy Gun 7 | 1 . . . . 6 Energy Cannon 1 | . . . . . 1 Ballistic Gun 5 | 1 . 1 . . 3 Ballistic Cannon . | . . . . . . Launcher . | . . . . . . Special Weapon . | . . . . . . Impact Weapon . | . . . . . . Slashing Weapon . | . . . . . . Piercing Weapon . | . . . . . . Special Melee Weapon . | . . . . . . Unidentified Prototypes 2 | . . . . . 2 Parts Lost 18 | . . 1 . . 17 Power 3 | . . . . . 3 Propulsion 2 | . . . . . 2 Utility 4 | . . . . . 4 Weapon 9 | . . 1 . . 8 Highest Loss Streak 12 | . . 1 . . 12 Average Slot Usage (%) 97 | . 86 100 100 100 91 Engine 13 | . 14 14 14 14 10 Wheel 26 | . 28 28 28 28 17 Device 2 | . . . . . 13 Storage 25 | . 15 28 28 28 20 Energy Gun 5 | . 14 8 . . 9 Ballistic Gun 21 | . 14 19 28 28 12 Naked Turns . | . . . . . . Heaviest Build 79 | 12 14 14 40 40 79 Greatest Support 32 | 26 26 26 20 20 32 Greatest Overweight (x) 13 | . . . 1 1 13 Average Overweight (x) . | . . . . 1 2 Largest Inventory Capacity 20 | 6 6 6 12 12 20 Average Capacity 8 | 5 6 6 6 12 14 Most Carried 11 | 2 3 6 7 8 11 Average Carried 6 | 1 2 5 6 7 7 Final Capacity 12 | 6 6 6 12 12 12 Final Carried 8 | 2 3 6 7 8 8 Class Distribution -------------------- 84% | Mutant 8% | Scavenger-Skirmisher 6% | Hauler-Skirmisher Dominant Class ---------------- Mutant | -10/Materials Mutant | -10/Mines Mutant | -10/Exiles Mutant | -9/Mines Scavenger-Skirmisher | -8/Materials Resources | -11 -10 -10 -10 -9 -8 ----------- Run | Scr Mat Min Exi Min Mat Matter Collected 839 | 197 . 339 . 14 289 Remotely . | . . . . . . Salvage Created 985 | . . 177 . . 808 Parts 55 | . . 18 . . 37 Haulers Intercepted . | . . . . . . Recyclers Shooed 1 | . . . . . 1 Parts Field Recycled . | . . . . . . Retrieved Matter . | . . . . . . Parts Self-Destructed . | . . . . . . Prevented . | . . . . . . Kills | -11 -10 -10 -10 -9 -8 ------- Run | Scr Mat Min Exi Min Mat Combat Hostiles Destroyed 17 | . . 5 . . 12 Guns 17 | . . 5 . . 12 Classes Destroyed 9 | . . 4 . . 5 Worker 3 | . . 1 . . 2 Tunneler 1 | . . 1 . . . Recycler 3 | . . . . . 3 Operator 1 | . . . . . 1 Watcher 1 | . . . . . 1 Swarmer 6 | . . 3 . . 3 Grunt 8 | . . 2 . . 6 Brawler 1 | . . . . . 1 Sentry 2 | . . . . . 2 Best Kill Streak 6 | . . 3 . . 6 Combat Bots Only 4 | . . 3 . . 4 Max Kills in Single Turn 2 | . . 1 . . 2 Gunslinging . | . . . . . . Exploded . | . . . . . . Melee . | . . . . . . Uniques/NPCs Destroyed . | . . . . . . Combat | -11 -10 -10 -10 -9 -8 -------- Run | Scr Mat Min Exi Min Mat Damage Taken 2039 | . . 175 . . 1864 Core 637 | . . 57 . . 580 Absorbed by Shields . | . . . . . . Core Remaining (%) 88 | 100 . . . 77 . Volleys Fired 72 | . . 20 . . 52 Largest 3 | . . 2 . . 3 Hottest 153 | . . 60 . . 153 Shots Fired 187 | . . 40 . . 147 Gun 177 | . . 40 . . 137 Cannon 10 | . . . . . 10 Launcher . | . . . . . . Special . | . . . . . . Kinetic 102 | . . 25 . . 77 Thermal 69 | . . . . . 69 Explosive . | . . . . . . Electromagnetic 16 | . . 15 . . 1 Robot Hit Streak 13 | . . 7 . . 13 Robot Miss Streak 4 | . . 3 . . 4 Penetration Max . | . . . . . . Secondary Targets 5 | . . . . . 5 Max Gunslinging Chain 1 | . . . . . 1 Shots Hit Robots 104 | . . 20 . . 84 Core Hits 46 | . . 12 . . 34 Critical Hits . | . . . . . . Critical Kills . | . . . . . . Critical Parts Destroyed . | . . . . . . Melee Attacks . | . . . . . . Impact . | . . . . . . Slashing . | . . . . . . Piercing . | . . . . . . Sneak Attacks . | . . . . . . Combat Hostiles . | . . . . . . Follow-up Attacks . | . . . . . . Damage Inflicted 1409 | . . 197 . . 1212 Guns 1269 | . . 197 . . 1072 Cannons 140 | . . . . . 140 Explosions . | . . . . . . Melee . | . . . . . . Ramming . | . . . . . . Kinetic 577 | . . 88 . . 489 Thermal 723 | . . . . . 723 Explosive . | . . . . . . Electromagnetic 109 | . . 109 . . . Impact . | . . . . . . Slashing . | . . . . . . Piercing . | . . . . . . Highest Corruption 15 | . . . . . 15 Average Corruption 9 | . . . . . 9 Corruption Purged . | . . . . . . Effects 2 | . . . . . 2 Message Errors 1 | . . . . . 1 Energy Discharges 1 | . . . . . 1 Overload Shots . | . . . . . . Overflow Damage . | . . . . . . Projectiles . | . . . . . . Explosions . | . . . . . . Melee . | . . . . . . Knockbacks . | . . . . . . Impact . | . . . . . . Kinetic . | . . . . . . Secondary . | . . . . . . Self-Inflicted Damage . | . . . . . . Shots . | . . . . . . Rammed . | . . . . . . Targets Rammed . | . . . . . . Kicked . | . . . . . . Crushed . | . . . . . . Highest Temperature 460 | . . 76 . . 460 Average Temperature 146 | . . 30 . . 169 Received Heat Transfer 603 | . . 54 . . 549 Effects 7 | . . . . . 7 Shutdowns 3 | . . . . . 3 Energy Bleed 1 | . . . . . 1 Interference 2 | . . . . . 2 Damage (minor) 1 | . . . . . 1 Siege Activations . | . . . . . . Robots Corrupted . | . . . . . . Combat Hostiles . | . . . . . . Parts Fried . | . . . . . . Impact Corruptions . | . . . . . . Robots Melted . | . . . . . . Combat Hostiles . | . . . . . . Parts Melted . | . . . . . . Heat Transferred 1582 | . . . . . 1582 Parts Sabotaged . | . . . . . . Parts Stolen . | . . . . . . Parts Stripped . | . . . . . . Power Chain Reactions . | . . . . . . Missiles Intercepted . | . . . . . . Alert | -11 -10 -10 -10 -9 -8 ------- Run | Scr Mat Min Exi Min Mat Peak Influence 569 | . 16 96 . . 569 Initial 6 | . . 6 . . . Average 66 | . 7 36 . . 234 Maximum Alert Level 2 | . . . . . 2 Low Security (%) 88 | 100 100 100 . 100 45 Level 1 7 | . . . . . 34 Level 2 4 | . . . . . 20 Level 3 . | . . . . . . Level 4 . | . . . . . . Level 5 . | . . . . . . High Security . | . . . . . . Max Security . | . . . . . . Squads Dispatched 5 | . 1 . . . 4 Investigation 1 | . 1 . . . . Extermination . | . . . . . . Reinforcement . | . . . . . . Assault 1 | . . . . . 1 Garrison 3 | . . . . . 3 Intercept . | . . . . . . Construction Impeded . | . . . . . . Haulers Reinforced . | . . . . . . Stealth | -11 -10 -10 -10 -9 -8 --------- Run | Scr Mat Min Exi Min Mat Distress Signals 1 | . . . . . 1 Communications Jammed . | . . . . . . Distress Signals . | . . . . . . Times Spotted 33 | . . 6 . . 27 Peak Tracking Total 10 | . . 3 . . 10 Tactical Retreats 1 | . . 1 . . . Traps | -11 -10 -10 -10 -9 -8 ------- Run | Scr Mat Min Exi Min Mat Traps Triggered 1 | . 1 . . . . Indirectly . | . . . . . . Trap Hack Attempts . | . . . . . . Triggered . | . . . . . . Disarmed . | . . . . . . Reprogrammed . | . . . . . . Reused . | . . . . . . Traps Extracted . | . . . . . . Installed . | . . . . . . Triggered . | . . . . . . Machines | -11 -10 -10 -10 -9 -8 ---------- Run | Scr Mat Min Exi Min Mat Machines Disabled 6 | . . 1 . . 5 Max in Single Turn 1 | . . 1 . . 1 Garrison Access 1 | . . . . . 1 Machines Sabotaged . | . . . . . . Garrisons Compromised . | . . . . . . Overloaded Fab Kills . | . . . . . . Fab Network Shutdowns . | . . . . . . Hacking | -11 -10 -10 -10 -9 -8 --------- Run | Scr Mat Min Exi Min Mat Machines Accessed 9 | . 3 1 4 . 1 Terminals 5 | . 3 1 . . 1 Fabricators . | . . . . . . Repair Stations . | . . . . . . Recycling Units . | . . . . . . Scanalyzers . | . . . . . . Garrison Access . | . . . . . . Total Hacks 17 | . 8 1 4 . 4 Successful 13 | . 5 1 4 . 3 Failed 4 | . 3 . . . 1 Catastrophic 1 | . 1 . . . . Database Lockouts . | . . . . . . Manual 1 | . . . 1 . . Terminals 13 | . 8 1 . . 4 Fabricators . | . . . . . . Repair Stations . | . . . . . . Recycling Units . | . . . . . . Scanalyzers . | . . . . . . Garrison Access . | . . . . . . Terminal Hacks 13 | . 5 1 4 . 3 Record 4 | . . . 4 . . Prototype ID Bank 1 | . . . . . 1 Level Access Points 1 | . 1 . . . . Branch Access Points 1 | . 1 . . . . Emergency Access Points 1 | . 1 . . . . Locate Traps 1 | . 1 . . . . Transport Status 2 | . . . . . 2 Zone Layout 2 | . 1 1 . . . Fabricator Hacks . | . . . . . . Repair Station Hacks . | . . . . . . Recycling Unit Hacks . | . . . . . . Scanalyzer . | . . . . . . Garrison Access Hacks . | . . . . . . Unauthorized Hacks . | . . . . . . Terminals . | . . . . . . Fabricators . | . . . . . . Repair Stations . | . . . . . . Recycling Units . | . . . . . . Scanalyzers . | . . . . . . Garrison Access . | . . . . . . Data Cores Recovered 1 | . . . . . 1 Used 1 | . . . . . 1 Hacking Detections 1 | . 1 . . . . Full Trace Events . | . . . . . . Feedback Events . | . . . . . . Feedback Blocked . | . . . . . . Robot Schematics Acquired . | . . . . . . Robots Built . | . . . . . . Matter . | . . . . . . Time . | . . . . . . Total Robot Build Rating . | . . . . . . Part Schematics Acquired . | . . . . . . Parts Built . | . . . . . . Matter . | . . . . . . Time . | . . . . . . Total Part Build Rating . | . . . . . . Parts Repaired . | . . . . . . Time . | . . . . . . Parts Recycled . | . . . . . . Recycled Matter . | . . . . . . Retrieved Matter . | . . . . . . Retrieved Components . | . . . . . . Parts Scanalyzed . | . . . . . . Part Schematics Acquired . | . . . . . . Parts Damaged . | . . . . . . Bothacking | -11 -10 -10 -10 -9 -8 ------------ Run | Scr Mat Min Exi Min Mat Used RIF Installer . | . . . . . . Robots Hacked . | . . . . . . Non-combat . | . . . . . . Combat . | . . . . . . Robot Hacks Applied . | . . . . . . Relay Couplers Released . | . . . . . . Robots Rewired . | . . . . . . Allies Hacked . | . . . . . . Hacks Repelled . | . . . . . . Allies | -11 -10 -10 -10 -9 -8 -------- Run | Scr Mat Min Exi Min Mat Total Allies . | . . . . . . Largest Group . | . . . . . . Highest-Rated Group . | . . . . . . Highest-Rated Ally . | . . . . . . Total Orders . | . . . . . . Ally Attacks . | . . . . . . Total Damage . | . . . . . . Kills . | . . . . . . Allies Corrupted . | . . . . . . Allies Melted . | . . . . . . Intel | -11 -10 -10 -10 -9 -8 ------- Run | Scr Mat Min Exi Min Mat Robot Analysis Total . | . . . . . . Derelict Logs Recovered 3 | . . 1 . 2 . Drone Launches . | . . . . . . Drone Recoveries . | . . . . . . Exploration | -11 -10 -10 -10 -9 -8 ------------- Run | Scr Mat Min Exi Min Mat Turns Passed 2163 | 39 132 734 443 444 371 Spaces Moved 2179 | 31 141 804 545 493 165 Core 2 | 1 . . . . 1 Treads . | . . . . . . Legs . | . . . . . . Wheels 2177 | 30 141 804 545 493 164 Hover . | . . . . . . Flight . | . . . . . . Fastest Speed 50 | 50 90 80 80 90 100 Average Speed 85 | 89 90 80 81 90 109 Slowest Speed 700 | 100 90 90 90 90 700 Overloaded Moves . | . . . . . . Propulsion Burnouts . | . . . . . . Robots Hopped . | . . . . . . Cave-ins Triggered . | . . . . . . Exploration Rate (%) 55 | 3 25 99 94 95 17 Regions Visited 5 Branch Regions 3 Pre-discovered Areas 1 | . . . . 1 . Known Exits Taken 2 | . 1 . 1 . . Unknown Exits Taken 3 | 1 . 1 . 1 . Scrap Searched 2 | . . 1 . 1 . Spaces Dug . | . . . . . . Terrain Destroyed 1 | . . . . . 1 Melee . | . . . . . . Projectile 1 | . . . . . 1 AOE . | . . . . . . Terrain Rammed . | . . . . . . Walls Destroyed . | . . . . . . Machines Disabled . | . . . . . . Actions | -11 -10 -10 -10 -9 -8 --------- Run | Scr Mat Min Exi Min Mat Total 2350 | 38 145 859 547 493 268 Wait 40 | . 3 22 . . 15 Move 2174 | 30 140 803 544 492 165 Hop . | . . . . . . Pick Up 22 | 1 1 6 1 1 12 Fast Attach 7 | 6 1 . . . . Attach 15 | . . 1 . . 14 Detach 2 | . . . . . 2 Swap 10 | 1 . 3 1 . 5 Drop 8 | . . 4 1 . 3 Fire 72 | . . 20 . . 52 Melee . | . . . . . . Ram . | . . . . . . Kick . | . . . . . . Crush . | . . . . . . Escape Stasis . | . . . . . . Rewire . | . . . . . . Trap . | . . . . . . Miscellaneous . | . . . . . . Route ------- -11/Scrapyard -10/Materials (discovered 4 exits: Mat x3 / *Min) -10/Mines (discovered 3 exits: *Mat x2 / *Exi) -10/Exiles (discovered 2 exits: *Min x2) -9/Mines (discovered 2 exits: *Mat x2) -8/Materials History --------- Turn | Location | Event 26 | -11/Scrapyard | Discovered new exit (range 13) 40 | -11/Scrapyard | Entered Materials 91 | -10/Materials | Identified exit to Materials 108 | -10/Materials | Identified exit to Mines 172 | -10/Materials | Entered Mines 315 | -10/Mines | Build established: Mutant 356 | -10/Mines | Deemed a non-threat by the Exiles lab entrance 357 | -10/Mines | Discovered new exit (range 5) 566 | -10/Mines | Discovered exit to Materials (range 13) 584 | -10/Mines | Discovered exit to Materials (range 11) 906 | -10/Mines | Entered Exiles 906 | -10/Exiles | Found Exiles lab abandoned 907 | -10/Exiles | Identified exit to Mines 1349 | -10/Exiles | Entered Mines 1370 | -9/Mines | Met a Derelict bent on vengeance 1397 | -9/Mines | Found a damaged Exp. Sensor Array with a note attached 1399 | -9/Mines | Found Prototype Device 1528 | -9/Mines | Learned Materials non-interactive machine intel 1569 | -9/Mines | Discovered new exit (range 7) 1698 | -9/Mines | Discovered new exit (range 7) 1753 | -9/Mines | Learned location of Zion (-7) 1793 | -9/Mines | Entered Materials 1793 | -8/Materials | Evolved 4 slots: Power x1, Utility x2, Weapon x1 1794 | -8/Materials | Loaded intel: 36 non-interactive machine locations 1794 | -8/Materials | Identified Exp. Sensor Array 1887 | -8/Materials | Garrison activated, responded to threat 2114 | -8/Materials | Lost 3 parts (1p2w) 2150 | -8/Materials | System corruption reached 10% 2152 | -8/Materials | Core integrity fell below 50% 2159 | -8/Materials | Core integrity fell below 20% 2164 | -8/Materials | Destroyed by L-31 Rogue with Katana Last Messages --------------- Com. Wheel destroyed. Acquired Hvy. Assault Rifle. B-36 Bruiser heat spikes uncontrollably. Com. Wheel destroyed. B-36 Bruiser heat damages Lgt. Treads. K-01 Serf collects debris. System corrupted: Energy discharge (-28). K-01 Serf collects debris. Hvy. Assault Rifle destroyed. Thermal Generator destroyed. System corrupted by crushing effect (+4). System corrupted by crushing effect (+5). K-01 Serf collects debris. B-36 Bruiser heat damages Rnf. Ion Engine. Knocked back. S-10 Pest destroyed. K-01 Serf collects debris. Knocked back. M-28 Smith fits Backup Power III on B-36 Bruiser. K-01 Serf collects debris. Map ----- +----------------------------------------------------+ | ?????????????????????????????????????????????????? | | ?????????????????????????????????????????????????? | | ?????????????????????????????????????????????????? | | ?????????????????????????????????????????????????? | | ?????"""""""?????????????????????????????????????? | | ?????"""""""?????????????????????????????????????? | | ?????"""""""?????????????????????????????????????? | | ?????"""""""?????????????????????????????????????? | | ?????"""""""??????????????"""????????????????????? | | ??????????????????????????"""????????????????????? | | ??????????????????????????"""????????????????????? | | ?????????????????????????????????????????????????? | | ????????????????????###??????????????????????????? | | ??????????????????### ######?????????????????????? | | ??????????????????# ! #?????????????????????? | | ??????????????????# %! """#?????????????????????? | | ??????????????????# """#?????????????????????? | | ??????????????????# """#?"""?????????????????? | | ??????????????????# #?"""?????????????????? | | ??????????????????# """#?"""????????????#????? | | ??????????????????# """#??????????????? #????? | | ??????????????????# ==""#??????????????? #????? | | ??????????????????# =^%% #?????????????? #????? | | ???????????############+####????????????? #????? | | ???????? %% #?????????????# #????? | | ???????? r %s@############### #????? | | ????"""""? """"" " sl[%==% * !%! #????? | | ????"""""??""""" "G" =%* b=%==% [ * #????? | | ????""""" """"" " g bk **! #????? | | ???????? g ############### #????? | | ????????? #??#??????????# #????? | | ????""""?? """ *gm #?????????????# #????? | | ????""""???""" *g* u#?????????????# ###### | | ????""""???""" k * * #?????????????# # | | ??????? #?#######?????# # "" | | ??????? "% ### ####### # "" | | ????????## ########### * ^^ # "" | | ?????????????????????# %*= ^^ # | | ?????????????????????# =%%! # "" | | ?????????????????????######## *= ###+### + "" | | ??????????????????????????#####+#### ## # "" | | ??????????????????????????# # ## # | | ??????????????????????????# """ ==# ## ###### | | ??????????????????????????# """ *%# # ##### | | ??????????????????????????# "" =# # | | ??????????????????????????# [[% # # | | ??????????????????????????# "" !# # | | ??????????????????????????# """ ##### ###+# | | ??????????????????????????# """ #???####### | | ??????????????????????????# #?????????# | +----------------------------------------------------+ Best States ------------- Heat Dissipation 45 Energy Generation 23 Energy Capacity 310 Matter Stores 450 Matter Capacity 450 Sight Range 16 Robot Scan Range 30 Terrain Scan Density 10 Evasion (%) 44 Item Schematics ----------------- None Robot Schematics ------------------ None Fabricated ------------ Nothing Alien Tech Used ----------------- None Achievements -------------- None Challenges ------------ None Game ------ Seed GodRestorationLance Manual? 0 Play Time 00:25:28 Cumulative 48.0 hours Start 2022.03.12 @ 13:46:58 End 2022.03.12 @ 14:20:38 Sessions 3 Manual Loads 0 Difficulty Rogue Special Mode None Game No. 36 Rogue 26 Adventurer 0 Explorer 10 Win Type - Total 0 Types 0/0/0/0/0/0/0/0/0 Lore% 37 Gallery% 39 Achievement% 26 Wizard Run 0 Options --------- ASCII 0 Keyboard 0 Movement Numpad Keybinds 0 Fullscreen 1 Font 18/SmallcapsGlow Map View 76x50 Tactical HUD 0 Map Filters NONE Filters NONE Steam 1 RUN: 126534d7-ee72-493a-966c-93f23f1e49d2